[Event "Live Chess"]
[Site "Chess.com"]
[Date "2023.05.21"]
[Round "-"]
[White "Delacorta"]
[Black "Biranidun"]
[Result "0-1"]
[WhiteElo "1377"]
[BlackElo "2518"]
[TimeControl "300"]
[EndTime "7:22:49 PDT"]
[Termination "Biranidun won by resignation"]

1. d4 {[%clk 0:04:57.8]} 1... Nf6 {[%clk 0:04:58.8]} 2. Nf3 {[%clk 0:04:56.7]}
2... g6 {[%clk 0:04:58.2]} 3. e3 {[%clk 0:04:53.5]} 3... Bg7 {[%clk 0:04:57.7]}
4. c4 {[%clk 0:04:52.1]} 4... O-O {[%clk 0:04:57.6]} 5. Nc3 {[%clk 0:04:51.3]}
5... c5 {[%clk 0:04:57.3]} 6. d5 {[%clk 0:04:49]} 6... d6 {[%clk 0:04:56.5]} 7.
h3 {[%clk 0:04:41.3]} 7... e6 {[%clk 0:04:56.4]} 8. e4 {[%clk 0:04:37.4]} 8...
exd5 {[%clk 0:04:55.6]} 9. exd5 {[%clk 0:04:26.7]} 9... Re8+ {[%clk 0:04:55.5]}
10. Be2 {[%clk 0:04:25.3]} 10... Bf5 {[%clk 0:04:53.1]} 11. O-O {[%clk
0:04:23.3]} 11... Nbd7 {[%clk 0:04:52.3]} 12. Bg5 {[%clk 0:04:08.1]} 12... h6
{[%clk 0:04:50.7]} 13. Be3 {[%clk 0:04:02.9]} 13... Ne4 {[%clk 0:04:49.3]} 14.
Rc1 {[%clk 0:03:50.1]} 14... Nxc3 {[%clk 0:04:45.8]} 15. bxc3 {[%clk 0:03:46.4]}
15... Nf6 {[%clk 0:04:44.7]} 16. Rb1 {[%clk 0:03:28.2]} 16... Bxb1 {[%clk
0:04:43.3]} 17. Qxb1 {[%clk 0:03:28.1]} 17... Qb6 {[%clk 0:04:39.5]} 18. Qc2
{[%clk 0:03:26.3]} 18... Qa5 {[%clk 0:04:35.8]} 19. Bd3 {[%clk 0:03:23.3]} 19...
Re7 {[%clk 0:04:32.8]} 20. Nh4 {[%clk 0:03:22.2]} 20... Rae8 {[%clk 0:04:31.3]}
21. Bxg6 {[%clk 0:03:18.9]} 21... fxg6 {[%clk 0:04:30.4]} 22. Nxg6 {[%clk
0:03:18.1]} 22... Rf7 {[%clk 0:04:28.5]} 0-1

[Event "Live Chess"]
[Site "Chess.com"]
[Date "2023.05.21"]
[Round "-"]
[White "hturner40"]
[Black "AttackingSnowLeopard"]
[Result "1-0"]
[WhiteElo "1775"]
[BlackElo "2156"]
[TimeControl "300"]
[EndTime "7:22:50 PDT"]
[Termination "hturner40 won by resignation"]

1. g3 {[%clk 0:04:53.9]} 1... d5 {[%clk 0:04:59]} 2. Nf3 {[%clk 0:04:52.5]} 2...
Nf6 {[%clk 0:04:58.1]} 3. Bg2 {[%clk 0:04:51.4]} 3... Bg4 {[%clk 0:04:56.4]} 4.
Ne5 {[%clk 0:04:48.3]} 4... Bf5 {[%clk 0:04:55]} 5. c4 {[%clk 0:04:47]} 5... e6
{[%clk 0:04:52.8]} 6. Qb3 {[%clk 0:04:43.6]} 6... b6 {[%clk 0:04:49.5]} 7. Qa4+
{[%clk 0:04:40.9]} 7... Nbd7 {[%clk 0:04:45.9]} 8. Nc6 {[%clk 0:04:36.1]} 8...
Qc8 {[%clk 0:04:45.2]} 9. cxd5 {[%clk 0:04:27.5]} 9... exd5 {[%clk 0:04:43.2]}
10. d4 {[%clk 0:04:19.5]} 10... Bd6 {[%clk 0:04:40.1]} 11. Nc3 {[%clk
0:04:08.9]} 11... Be6 {[%clk 0:04:37.7]} 12. e4 {[%clk 0:03:45.9]} 12... dxe4
{[%clk 0:04:33.4]} 13. Nxe4 {[%clk 0:03:44]} 13... Nxe4 {[%clk 0:04:29.1]} 14.
Bxe4 {[%clk 0:03:42.2]} 14... O-O {[%clk 0:04:28.8]} 15. Bf4 {[%clk 0:03:10]}
15... Bxf4 {[%clk 0:04:26.5]} 16. Ne7+ {[%clk 0:03:07.5]} 16... Kh8 {[%clk
0:04:21.8]} 17. Nxc8 {[%clk 0:03:06]} 17... Raxc8 {[%clk 0:04:16.5]} 18. gxf4
{[%clk 0:03:03.3]} 18... Nf6 {[%clk 0:04:16.2]} 19. Bf3 {[%clk 0:02:46.6]} 19...
Rfe8 {[%clk 0:04:12.9]} 20. O-O {[%clk 0:02:41.8]} 20... Nd5 {[%clk 0:04:11]}
21. Bxd5 {[%clk 0:02:31.5]} 21... Bxd5 {[%clk 0:04:09.8]} 22. Rfe1 {[%clk
0:02:29.8]} 22... c6 {[%clk 0:04:06.6]} 23. Re3 {[%clk 0:02:15]} 23... Rxe3
{[%clk 0:04:02.5]} 24. fxe3 {[%clk 0:02:11.9]} 24... Re8 {[%clk 0:04:02.2]} 25.
Kf2 {[%clk 0:02:03.7]} 25... Re6 {[%clk 0:04:00.3]} 26. Rg1 {[%clk 0:01:56]}
26... h6 {[%clk 0:03:59.3]} 27. Qxa7 {[%clk 0:01:41.5]} 1-0

[Event "Live Chess"]
[Site "Chess.com"]
[Date "2023.05.21"]
[Round "-"]
[White "Vedant-1411"]
[Black "Ian-Morley"]
[Result "0-1"]
[WhiteElo "843"]
[BlackElo "1082"]
[TimeControl "300"]
[EndTime "7:22:51 PDT"]
[Termination "Ian-Morley won by checkmate"]

1. d4 {[%clk 0:04:32.4]} 1... e5 {[%clk 0:04:58.3]} 2. dxe5 {[%clk 0:04:00.4]}
2... Nc6 {[%clk 0:04:54]} 3. Nf3 {[%clk 0:03:46.5]} 3... Qe7 {[%clk 0:04:52.1]}
4. Nc3 {[%clk 0:03:45.4]} 4... b6 {[%clk 0:04:46.7]} 5. Bf4 {[%clk 0:03:44.4]}
5... Qb4 {[%clk 0:04:44.2]} 6. a3 {[%clk 0:03:31]} 6... Qxb2 {[%clk 0:04:37.7]}
7. Nd5 {[%clk 0:03:14.4]} 7... Kd8 {[%clk 0:04:25.8]} 8. e6 {[%clk 0:03:06.8]}
8... dxe6 {[%clk 0:04:24.3]} 9. Nxc7+ {[%clk 0:03:05.9]} 9... Bd7 {[%clk
0:04:14.7]} 10. Nxa8 {[%clk 0:02:56.3]} 10... Bxa3 {[%clk 0:04:12.3]} 11. Be5
{[%clk 0:02:46.5]} 11... Bb4+ {[%clk 0:04:07.3]} 12. Bc3 {[%clk 0:02:35.9]}
12... Bxc3+ {[%clk 0:04:05.7]} 13. Nd2 {[%clk 0:02:34.8]} 13... Nb4 {[%clk
0:04:03.2]} 14. Rxa7 {[%clk 0:02:22.1]} 14... Nxc2+ {[%clk 0:04:01.2]} 15. Qxc2
{[%clk 0:02:19.1]} 15... Qxc2 {[%clk 0:03:59.9]} 16. Nxb6 {[%clk 0:02:17.3]}
16... Qxd2# {[%clk 0:03:58.9]} 0-1

[Event "Live Chess"]
[Site "Chess.com"]
[Date "2023.05.21"]
[Round "-"]
[White "robotking06"]
[Black "JoeRoot66"]
[Result "0-1"]
[WhiteElo "308"]
[BlackElo "1903"]
[TimeControl "300"]
[EndTime "7:22:57 PDT"]
[Termination "JoeRoot66 won by checkmate"]

1. e4 {[%clk 0:04:58.6]} 1... c6 {[%clk 0:04:58.3]} 2. e5 {[%clk 0:04:57.3]}
2... d5 {[%clk 0:04:58.2]} 3. e6 {[%clk 0:04:56.3]} 3... Bxe6 {[%clk 0:04:55.9]}
4. Bc4 {[%clk 0:04:55.1]} 4... dxc4 {[%clk 0:04:54.7]} 5. Qg4 {[%clk 0:04:52.9]}
5... Bxg4 {[%clk 0:04:53.2]} 6. f3 {[%clk 0:04:51.7]} 6... Bf5 {[%clk
0:04:50.1]} 7. g4 {[%clk 0:04:49.8]} 7... Bg6 {[%clk 0:04:49.2]} 8. f4 {[%clk
0:04:48.6]} 8... e5 {[%clk 0:04:47.6]} 9. f5 {[%clk 0:04:47.8]} 9... Qh4+ {[%clk
0:04:46.7]} 10. Ke2 {[%clk 0:04:44.6]} 10... Qxg4+ {[%clk 0:04:44.3]} 11. Ke3
{[%clk 0:04:43.4]} 11... Qf4+ {[%clk 0:04:41.5]} 12. Ke2 {[%clk 0:04:40.9]}
12... Bh5+ {[%clk 0:04:41.4]} 13. Ke1 {[%clk 0:04:39.4]} 13... Bc5 {[%clk
0:04:37]} 14. Nf3 {[%clk 0:04:36.1]} 14... Qxf3 {[%clk 0:04:35.4]} 15. Rf1
{[%clk 0:04:34.8]} 15... Qe2# {[%clk 0:04:34.7]} 0-1

[Event "Live Chess"]
[Site "Chess.com"]
[Date "2023.05.21"]
[Round "-"]
[White "onemoretime1975"]
[Black "ProfPoisson"]
[Result "1-0"]
[WhiteElo "1841"]
[BlackElo "1218"]
[TimeControl "300"]
[EndTime "7:23:00 PDT"]
[Termination "onemoretime1975 won by resignation"]

1. e4 {[%clk 0:04:58.4]} 1... e5 {[%clk 0:04:56.3]} 2. Nf3 {[%clk 0:04:57.3]}
2... Nf6 {[%clk 0:04:54]} 3. Nc3 {[%clk 0:04:55.2]} 3... Nc6 {[%clk 0:04:51.3]}
4. Bb5 {[%clk 0:04:53.1]} 4... Bc5 {[%clk 0:04:45.8]} 5. d3 {[%clk 0:04:49.4]}
5... Nd4 {[%clk 0:04:43.5]} 6. Nxd4 {[%clk 0:04:47.3]} 6... exd4 {[%clk
0:04:40.9]} 7. Ne2 {[%clk 0:04:39.1]} 7... O-O {[%clk 0:04:35.5]} 8. O-O {[%clk
0:04:37.4]} 8... a6 {[%clk 0:04:31.5]} 9. Ba4 {[%clk 0:04:35.2]} 9... b5 {[%clk
0:04:30.3]} 10. Bb3 {[%clk 0:04:34]} 10... d5 {[%clk 0:04:23.7]} 11. exd5 {[%clk
0:04:26.8]} 11... Nxd5 {[%clk 0:04:21.2]} 12. Nf4 {[%clk 0:04:24.3]} 12... Nxf4
{[%clk 0:04:19.4]} 13. Bxf4 {[%clk 0:04:22.4]} 13... Bd6 {[%clk 0:04:14.8]} 14.
Qf3 {[%clk 0:04:18.6]} 14... Be6 {[%clk 0:04:05.2]} 15. Bxd6 {[%clk 0:04:13.5]}
15... Qxd6 {[%clk 0:04:01.6]} 16. Rfe1 {[%clk 0:04:10]} 16... Bxb3 {[%clk
0:03:57.7]} 17. axb3 {[%clk 0:04:08]} 17... c5 {[%clk 0:03:47.8]} 18. Re4 {[%clk
0:03:59.2]} 18... a5 {[%clk 0:03:41.9]} 19. Rae1 {[%clk 0:03:57.1]} 19... a4
{[%clk 0:03:37.3]} 20. bxa4 {[%clk 0:03:56]} 20... Rxa4 {[%clk 0:03:34.7]} 21.
Re8 {[%clk 0:03:44.3]} 21... Ra8 {[%clk 0:03:26.6]} 22. Rxa8 {[%clk 0:03:41.3]}
1-0

[Event "Live Chess"]
[Site "Chess.com"]
[Date "2023.05.21"]
[Round "-"]
[White "McSlash1"]
[Black "PiotrD11"]
[Result "1-0"]
[WhiteElo "2014"]
[BlackElo "1368"]
[TimeControl "300"]
[EndTime "7:23:06 PDT"]
[Termination "McSlash1 won on time"]

1. e4 {[%clk 0:04:59.4]} 1... d5 {[%clk 0:04:59.3]} 2. exd5 {[%clk 0:04:59.3]}
2... Nf6 {[%clk 0:04:58.1]} 3. d4 {[%clk 0:04:58]} 3... Nxd5 {[%clk 0:04:57.1]}
4. c4 {[%clk 0:04:57.7]} 4... Nf6 {[%clk 0:04:56.1]} 5. Nf3 {[%clk 0:04:56.5]}
5... Bf5 {[%clk 0:04:54.9]} 6. Bd3 {[%clk 0:04:55.4]} 6... Bxd3 {[%clk
0:04:50.8]} 7. Qxd3 {[%clk 0:04:55.3]} 7... e6 {[%clk 0:04:49.4]} 8. O-O {[%clk
0:04:54]} 8... Be7 {[%clk 0:04:48.5]} 9. Nc3 {[%clk 0:04:52.4]} 9... c6 {[%clk
0:04:47.6]} 10. Bf4 {[%clk 0:04:51.5]} 10... Nbd7 {[%clk 0:04:45.7]} 11. b3
{[%clk 0:04:50.5]} 11... O-O {[%clk 0:04:44.1]} 12. Rad1 {[%clk 0:04:46.7]}
12... Qa5 {[%clk 0:04:37.5]} 13. Ne4 {[%clk 0:04:45.5]} 13... Nxe4 {[%clk
0:04:33.6]} 14. Qxe4 {[%clk 0:04:45.4]} 14... Nf6 {[%clk 0:04:32.3]} 15. Qc2
{[%clk 0:04:43.7]} 15... Rad8 {[%clk 0:04:19.6]} 16. Be5 {[%clk 0:04:42.8]}
16... Ng4 {[%clk 0:04:14]} 17. Bf4 {[%clk 0:04:37.4]} 17... Nf6 {[%clk
0:04:08.2]} 18. h3 {[%clk 0:04:36.6]} 18... Nh5 {[%clk 0:04:04.6]} 19. Bg5
{[%clk 0:04:33.5]} 19... Bxg5 {[%clk 0:04:02.3]} 20. b4 {[%clk 0:04:32.6]} 20...
Qxb4 {[%clk 0:03:26.1]} 21. Nxg5 {[%clk 0:04:30.2]} 21... Nf6 {[%clk 0:03:17]}
22. Rb1 {[%clk 0:04:24.9]} 22... Qe7 {[%clk 0:03:13.9]} 23. Rfe1 {[%clk
0:04:21.7]} 23... h6 {[%clk 0:03:11.8]} 24. Nf3 {[%clk 0:04:15.7]} 24... Rd7
{[%clk 0:02:56.5]} 25. Ne5 {[%clk 0:04:13.3]} 25... Rxd4 {[%clk 0:02:45.7]} 26.
Rbd1 {[%clk 0:04:04.9]} 26... Rfd8 {[%clk 0:02:42.1]} 27. Rxd4 {[%clk
0:04:00.4]} 27... Rxd4 {[%clk 0:02:41]} 28. Qa4 {[%clk 0:03:59.9]} 28... a6
{[%clk 0:02:31.4]} 29. Qb3 {[%clk 0:03:51.6]} 29... Rd8 {[%clk 0:02:27.7]} 30.
Rb1 {[%clk 0:03:44.9]} 30... Qc5 {[%clk 0:02:12.2]} 31. Nf3 {[%clk 0:03:38.8]}
31... Ne4 {[%clk 0:01:55.8]} 32. Rb2 {[%clk 0:03:34.1]} 32... b5 {[%clk
0:01:39.1]} 33. cxb5 {[%clk 0:03:31.3]} 33... cxb5 {[%clk 0:01:34.3]} 34. g3
{[%clk 0:03:30.6]} 34... Qc1+ {[%clk 0:01:17.5]} 35. Kg2 {[%clk 0:03:28]} 35...
Qc6 {[%clk 0:01:08.1]} 36. Rc2 {[%clk 0:03:24.9]} 36... Qb7 {[%clk 0:01:02.3]}
37. Kh2 {[%clk 0:03:20.3]} 37... a5 {[%clk 0:00:44.5]} 38. a4 {[%clk 0:03:15.4]}
38... b4 {[%clk 0:00:41.1]} 39. Qc4 {[%clk 0:03:09.9]} 39... Nd6 {[%clk
0:00:32.8]} 40. Qf4 {[%clk 0:03:02.6]} 40... Nf5 {[%clk 0:00:29.2]} 41. Rc7
{[%clk 0:02:47.7]} 41... Qd5 {[%clk 0:00:22.1]} 42. Ne5 {[%clk 0:02:41.2]} 42...
Rd6 {[%clk 0:00:17.5]} 43. Nxf7 {[%clk 0:02:36.2]} 43... b3 {[%clk 0:00:14.9]}
44. Nxd6 {[%clk 0:02:17]} 44... Nxd6 {[%clk 0:00:12.8]} 45. Rd7 {[%clk 0:02:13]}
45... b2 {[%clk 0:00:09.2]} 46. Rxd6 {[%clk 0:02:03.5]} 46... Qxd6 {[%clk
0:00:07.3]} 47. Qxd6 {[%clk 0:02:03.4]} 47... b1=Q {[%clk 0:00:06.5]} 48. Qxe6+
{[%clk 0:02:02.9]} 48... Kh7 {[%clk 0:00:03.1]} 49. Qe5 {[%clk 0:01:59]} 1-0

[Event "Live Chess"]
[Site "Chess.com"]
[Date "2023.05.21"]
[Round "-"]
[White "raminguy"]
[Black "SupremeTactician"]
[Result "0-1"]
[WhiteElo "1956"]
[BlackElo "2220"]
[TimeControl "300"]
[EndTime "7:23:12 PDT"]
[Termination "SupremeTactician won by resignation"]

1. d4 {[%clk 0:04:59.7]} 1... Nf6 {[%clk 0:04:59]} 2. Nc3 {[%clk 0:04:59.1]}
2... e6 {[%clk 0:04:58.9]} 3. e4 {[%clk 0:04:57.7]} 3... d5 {[%clk 0:04:58.8]}
4. Bg5 {[%clk 0:04:56.3]} 4... dxe4 {[%clk 0:04:57.8]} 5. Nxe4 {[%clk
0:04:54.8]} 5... Be7 {[%clk 0:04:57.5]} 6. Bxf6 {[%clk 0:04:50.9]} 6... Bxf6
{[%clk 0:04:57.4]} 7. c3 {[%clk 0:04:50]} 7... Nc6 {[%clk 0:04:56.1]} 8. Nf3
{[%clk 0:04:48.9]} 8... O-O {[%clk 0:04:55.4]} 9. Bd3 {[%clk 0:04:47.5]} 9...
Bd7 {[%clk 0:04:54.5]} 10. h4 {[%clk 0:04:45.7]} 10... Be7 {[%clk 0:04:53.3]}
11. h5 {[%clk 0:04:44.4]} 11... f5 {[%clk 0:04:52.2]} 12. Ng3 {[%clk 0:04:09.1]}
12... Bd6 {[%clk 0:04:49.9]} 13. h6 {[%clk 0:04:07.1]} 13... g6 {[%clk
0:04:48.7]} 14. Qd2 {[%clk 0:03:58.7]} 14... e5 {[%clk 0:04:48]} 15. Bc4+ {[%clk
0:03:52.2]} 15... Kh8 {[%clk 0:04:46.9]} 16. dxe5 {[%clk 0:03:38.7]} 16... Nxe5
{[%clk 0:04:45.9]} 17. Nxe5 {[%clk 0:03:36.3]} 17... Bxe5 {[%clk 0:04:45.8]} 18.
O-O-O {[%clk 0:03:33.7]} 18... Bc6 {[%clk 0:04:41.7]} 19. Qe2 {[%clk 0:03:28.6]}
19... Qf6 {[%clk 0:04:37.9]} 20. Rhe1 {[%clk 0:03:23.4]} 20... Bxg3 {[%clk
0:04:36.7]} 21. fxg3 {[%clk 0:03:21.3]} 21... Qg5+ {[%clk 0:04:36.3]} 22. Kb1
{[%clk 0:03:19.2]} 22... Qxh6 {[%clk 0:04:33.8]} 23. Rh1 {[%clk 0:03:11.6]}
23... Qg7 {[%clk 0:04:31.8]} 24. Rh3 {[%clk 0:03:06]} 24... Rae8 {[%clk
0:04:29.6]} 25. Qc2 {[%clk 0:03:04.4]} 25... Be4 {[%clk 0:04:28.5]} 26. Bd3
{[%clk 0:03:00.3]} 26... Rd8 {[%clk 0:04:26.2]} 27. Bxe4 {[%clk 0:02:58.7]}
27... Rxd1+ {[%clk 0:04:24.2]} 28. Qxd1 {[%clk 0:02:58.6]} 28... fxe4 {[%clk
0:04:23.9]} 29. Qe2 {[%clk 0:02:51]} 29... Re8 {[%clk 0:04:22.4]} 30. Rh4 {[%clk
0:02:49.6]} 30... e3 {[%clk 0:04:20.6]} 31. Rf4 {[%clk 0:02:47.4]} 31... Qd7
{[%clk 0:04:18.7]} 32. Rf3 {[%clk 0:02:44.7]} 32... Kg7 {[%clk 0:04:13]} 33.
Rxe3 {[%clk 0:02:38.9]} 0-1

[Event "Live Chess"]
[Site "Chess.com"]
[Date "2023.05.21"]
[Round "-"]
[White "SimonB4a"]
[Black "Bob2pen"]
[Result "1/2-1/2"]
[WhiteElo "2167"]
[BlackElo "1849"]
[TimeControl "300"]
[EndTime "7:23:21 PDT"]
[Termination "Game drawn by agreement"]

1. d4 {[%clk 0:04:57.8]} 1... Nf6 {[%clk 0:04:56.5]} 2. c4 {[%clk 0:04:56.4]}
2... c5 {[%clk 0:04:55.6]} 3. d5 {[%clk 0:04:55.2]} 3... e6 {[%clk 0:04:54.7]}
4. Nc3 {[%clk 0:04:53.9]} 4... exd5 {[%clk 0:04:53.8]} 5. cxd5 {[%clk 0:04:53]}
5... d6 {[%clk 0:04:52.7]} 6. e4 {[%clk 0:04:51.9]} 6... g6 {[%clk 0:04:51.6]}
7. f4 {[%clk 0:04:50.9]} 7... Bg7 {[%clk 0:04:50.5]} 8. Nf3 {[%clk 0:04:49.8]}
8... O-O {[%clk 0:04:47.5]} 9. Be2 {[%clk 0:04:45.7]} 9... Bg4 {[%clk
0:04:45.5]} 10. O-O {[%clk 0:04:44.4]} 10... a6 {[%clk 0:04:44.2]} 11. a4 {[%clk
0:04:43]} 11... Nbd7 {[%clk 0:04:42.9]} 12. h3 {[%clk 0:04:38.8]} 12... Bxf3
{[%clk 0:04:41.6]} 13. Bxf3 {[%clk 0:04:37.8]} 13... Rb8 {[%clk 0:04:40.5]} 14.
a5 {[%clk 0:04:35.7]} 14... b5 {[%clk 0:04:38]} 15. axb6 {[%clk 0:04:34.3]}
15... Rxb6 {[%clk 0:04:35.3]} 16. g4 {[%clk 0:04:32.6]} 16... Qb8 {[%clk
0:04:04.7]} 17. Qd3 {[%clk 0:04:11]} 17... Rc8 {[%clk 0:03:53.6]} 18. g5 {[%clk
0:04:00.1]} 18... Ne8 {[%clk 0:03:45.7]} 19. e5 {[%clk 0:03:58.7]} 19... c4
{[%clk 0:03:41.8]} 20. Qc2 {[%clk 0:03:53.3]} 20... dxe5 {[%clk 0:03:36.8]} 21.
f5 {[%clk 0:03:52.1]} 21... Nd6 {[%clk 0:03:19.4]} 22. fxg6 {[%clk 0:03:42.7]}
22... hxg6 {[%clk 0:03:16.1]} 23. Ne4 {[%clk 0:03:41.4]} 23... Nxe4 {[%clk
0:03:13.8]} 24. Bxe4 {[%clk 0:03:40.2]} 24... Nc5 {[%clk 0:03:07.7]} 25. Ra5
{[%clk 0:03:09.8]} 25... Nb3 {[%clk 0:02:54.6]} 26. Ra4 {[%clk 0:03:02.4]} 26...
Nxc1 {[%clk 0:02:50.7]} 27. Qxc1 {[%clk 0:02:53.1]} 27... Rxb2 {[%clk
0:02:47.1]} 28. Rxc4 {[%clk 0:02:47.9]} 28... Rxc4 {[%clk 0:02:44.4]} 29. Qxc4
{[%clk 0:02:46.2]} 29... Qb6+ {[%clk 0:02:39.9]} 30. Kh1 {[%clk 0:02:44.7]}
30... Qe3 {[%clk 0:02:35.3]} 31. Bg2 {[%clk 0:02:21.3]} 31... Qg3 {[%clk
0:02:33.3]} 32. Qe4 {[%clk 0:02:15]} 32... Rd2 {[%clk 0:02:16.2]} 33. Rg1 {[%clk
0:01:50.4]} 33... Rd4 {[%clk 0:02:05]} 34. Qb1 {[%clk 0:01:44.6]} 34... Rh4
{[%clk 0:02:01.6]} 35. Qb8+ {[%clk 0:01:36.3]} 35... Kh7 {[%clk 0:02:00.1]} 36.
Qc8 {[%clk 0:01:35]} 36... e4 {[%clk 0:01:56.3]} 37. Qd7 {[%clk 0:01:30.2]}
37... Qf4 {[%clk 0:01:42.8]} 38. Rf1 {[%clk 0:01:23.7]} 38... Qxg5 {[%clk
0:01:27.9]} 39. Rxf7 {[%clk 0:01:20.9]} 39... Qh6 {[%clk 0:01:22.3]} 40. d6
{[%clk 0:01:18.6]} 40... e3 {[%clk 0:01:20.8]} 41. Qe7 {[%clk 0:01:11.4]} 41...
Rd4 {[%clk 0:01:17.5]} 42. d7 {[%clk 0:01:05.6]} 42... e2 {[%clk 0:00:59.1]} 43.
Qxe2 {[%clk 0:00:59.5]} 43... Qc1+ {[%clk 0:00:52.7]} 44. Kh2 {[%clk 0:00:55.7]}
44... Qc7+ {[%clk 0:00:51.2]} 45. Kh1 {[%clk 0:00:49]} 45... Rxd7 {[%clk
0:00:47.9]} 46. Rxd7 {[%clk 0:00:45.3]} 46... Qxd7 {[%clk 0:00:46.6]} 47. Qg4
{[%clk 0:00:41.1]} 47... Qxg4 {[%clk 0:00:43.6]} 48. hxg4 {[%clk 0:00:40]} 48...
a5 {[%clk 0:00:42.9]} 49. Bc6 {[%clk 0:00:37.8]} 49... Kh6 {[%clk 0:00:41]} 50.
Kg2 {[%clk 0:00:36.9]} 50... Kg5 {[%clk 0:00:40.2]} 51. Kf3 {[%clk 0:00:35.8]}
51... Bc3 {[%clk 0:00:38.9]} 52. Be8 {[%clk 0:00:34.3]} 52... Bb4 {[%clk
0:00:37.6]} 53. Bd7 {[%clk 0:00:33.1]} 53... Bc3 {[%clk 0:00:32.6]} 1/2-1/2

[Event "Live Chess"]
[Site "Chess.com"]
[Date "2023.05.21"]
[Round "-"]
[White "Conradical12"]
[Black "youtookmyhorse"]
[Result "0-1"]
[WhiteElo "1538"]
[BlackElo "747"]
[TimeControl "300"]
[EndTime "7:23:30 PDT"]
[Termination "youtookmyhorse won by resignation"]

1. e4 {[%clk 0:04:35.8]} 1... c6 {[%clk 0:04:58.8]} 2. Nf3 {[%clk 0:04:34.9]}
2... d5 {[%clk 0:04:57.6]} 3. d4 {[%clk 0:04:34.4]} 3... e6 {[%clk 0:04:53.9]}
4. exd5 {[%clk 0:04:32.8]} 4... cxd5 {[%clk 0:04:52.5]} 5. c4 {[%clk 0:04:32]}
5... Nf6 {[%clk 0:04:38.2]} 6. Nc3 {[%clk 0:04:30.8]} 6... Bb4 {[%clk
0:04:32.3]} 7. Qa4+ {[%clk 0:04:28.5]} 7... Nc6 {[%clk 0:04:30.2]} 8. Bd2 {[%clk
0:04:24.4]} 8... Qa5 {[%clk 0:04:16.5]} 9. Qxa5 {[%clk 0:04:18.8]} 9... Nxa5
{[%clk 0:03:41]} 10. O-O-O {[%clk 0:04:14]} 10... Bd7 {[%clk 0:03:37.5]} 11. Ne5
{[%clk 0:03:57.6]} 11... Bxc3 {[%clk 0:03:30.1]} 12. Bxc3 {[%clk 0:03:55.6]}
12... Nxc4 {[%clk 0:03:28.6]} 13. Nxc4 {[%clk 0:03:53.2]} 13... dxc4 {[%clk
0:03:27.3]} 14. Bxc4 {[%clk 0:03:52.8]} 14... O-O {[%clk 0:03:25.9]} 15. Bd3
{[%clk 0:03:50.5]} 15... Rac8 {[%clk 0:03:24.9]} 16. f3 {[%clk 0:03:49]} 16...
Nd5 {[%clk 0:03:22.7]} 17. Kc2 {[%clk 0:03:46.6]} 17... Ba4+ {[%clk 0:03:14.8]}
18. b3 {[%clk 0:03:44.9]} 18... Bd7 {[%clk 0:03:11.9]} 19. Bc4 {[%clk
0:03:40.6]} 19... Bb5 {[%clk 0:03:07.3]} 20. Bxb5 {[%clk 0:03:37.3]} 20... Rxc3+
{[%clk 0:03:06.3]} 21. Kd2 {[%clk 0:03:35]} 21... Rfc8 {[%clk 0:02:59.2]} 22.
Bc4 {[%clk 0:03:33.3]} 22... b5 {[%clk 0:02:51]} 23. Bxd5 {[%clk 0:03:31.4]}
23... Rc2+ {[%clk 0:02:46.6]} 24. Ke3 {[%clk 0:03:28.6]} 24... R8c3+ {[%clk
0:02:43.4]} 25. Kf4 {[%clk 0:03:26.9]} 25... exd5 {[%clk 0:02:41]} 26. Rhe1
{[%clk 0:03:25.4]} 26... h6 {[%clk 0:02:39.7]} 27. Kf5 {[%clk 0:03:23.9]} 27...
Rxg2 {[%clk 0:02:37.9]} 28. Re8+ {[%clk 0:03:21.3]} 28... Kh7 {[%clk 0:02:36.5]}
29. h4 {[%clk 0:03:18.2]} 29... Rxf3+ {[%clk 0:02:35.6]} 30. Ke5 {[%clk
0:03:16.8]} 30... Re2+ {[%clk 0:02:35]} 31. Kxd5 {[%clk 0:03:14.4]} 31... Rxe8
{[%clk 0:02:33.7]} 0-1

[Event "Live Chess"]
[Site "Chess.com"]
[Date "2023.05.21"]
[Round "-"]
[White "luckywookie"]
[Black "martynstanley"]
[Result "0-1"]
[WhiteElo "814"]
[BlackElo "1011"]
[TimeControl "300"]
[EndTime "7:23:35 PDT"]
[Termination "martynstanley won by checkmate"]

1. e4 {[%clk 0:04:58]} 1... e6 {[%clk 0:04:59.5]} 2. Nf3 {[%clk 0:04:57.3]} 2...
d5 {[%clk 0:04:58.9]} 3. exd5 {[%clk 0:04:55.8]} 3... exd5 {[%clk 0:04:58.3]} 4.
d4 {[%clk 0:04:54.3]} 4... c5 {[%clk 0:04:57.7]} 5. Bb5+ {[%clk 0:04:44]} 5...
Nc6 {[%clk 0:04:56.5]} 6. O-O {[%clk 0:04:41.5]} 6... a6 {[%clk 0:04:55.2]} 7.
Re1+ {[%clk 0:04:40.1]} 7... Ne7 {[%clk 0:04:53.9]} 8. Bxc6+ {[%clk 0:04:36]}
8... bxc6 {[%clk 0:04:53.2]} 9. Bg5 {[%clk 0:04:33.2]} 9... Bb7 {[%clk
0:04:51.4]} 10. Re3 {[%clk 0:04:28.5]} 10... f6 {[%clk 0:04:50.3]} 11. Bf4
{[%clk 0:04:20.7]} 11... cxd4 {[%clk 0:04:49]} 12. Nxd4 {[%clk 0:04:18.5]} 12...
c5 {[%clk 0:04:44.8]} 13. Nf5 {[%clk 0:04:07.2]} 13... d4 {[%clk 0:04:43.5]} 14.
Re4 {[%clk 0:04:02.3]} 14... Bxe4 {[%clk 0:04:40.1]} 15. Nxe7 {[%clk 0:03:59.8]}
15... Bxe7 {[%clk 0:04:37.8]} 16. Qe2 {[%clk 0:03:54.7]} 16... Bb7 {[%clk
0:04:35.8]} 17. Nd2 {[%clk 0:03:50.3]} 17... Qd5 {[%clk 0:04:34.6]} 18. f3
{[%clk 0:03:48.6]} 18... Qd7 {[%clk 0:04:29.5]} 19. Re1 {[%clk 0:03:46]} 19...
O-O {[%clk 0:04:25.4]} 20. Qc4+ {[%clk 0:03:27.6]} 20... Qd5 {[%clk 0:04:19]}
21. Qxd5+ {[%clk 0:03:19.1]} 21... Bxd5 {[%clk 0:04:18]} 22. Rxe7 {[%clk
0:03:18.1]} 22... Rae8 {[%clk 0:04:17.1]} 23. Rxe8 {[%clk 0:03:13.1]} 23... Rxe8
{[%clk 0:04:16.2]} 24. Kf2 {[%clk 0:03:11.8]} 24... g5 {[%clk 0:04:12.1]} 25.
Bd6 {[%clk 0:03:10.5]} 25... c4 {[%clk 0:04:09.7]} 26. Bc5 {[%clk 0:03:02.5]}
26... d3 {[%clk 0:04:07.3]} 27. cxd3 {[%clk 0:03:00.4]} 27... cxd3 {[%clk
0:04:06.2]} 28. Bd4 {[%clk 0:02:57.8]} 28... f5 {[%clk 0:04:04.1]} 29. b3 {[%clk
0:02:33.4]} 29... Re2+ {[%clk 0:04:01.4]} 30. Kg3 {[%clk 0:02:26.5]} 30... Rxd2
{[%clk 0:03:59.8]} 31. f4 {[%clk 0:02:24.6]} 31... g4 {[%clk 0:03:57.5]} 32. a4
{[%clk 0:02:00.9]} 32... Bxb3 {[%clk 0:03:55.2]} 33. Kh4 {[%clk 0:01:56.9]}
33... Bxa4 {[%clk 0:03:53.4]} 34. Kg5 {[%clk 0:01:56.3]} 34... Bd7 {[%clk
0:03:50]} 35. h3 {[%clk 0:01:48.5]} 35... Rxg2 {[%clk 0:03:48.3]} 36. hxg4
{[%clk 0:01:46.9]} 36... Rxg4+ {[%clk 0:03:47.2]} 37. Kh5 {[%clk 0:01:44.7]}
37... Rxf4 {[%clk 0:03:46.1]} 38. Be5 {[%clk 0:01:41.4]} 38... Re4 {[%clk
0:03:44]} 39. Bf6 {[%clk 0:01:39.2]} 39... Kf7 {[%clk 0:03:42.1]} 40. Bg5 {[%clk
0:01:37.5]} 40... a5 {[%clk 0:03:39]} 41. Kh6 {[%clk 0:01:36.9]} 41... a4 {[%clk
0:03:37.3]} 42. Bd2 {[%clk 0:01:28.8]} 42... a3 {[%clk 0:03:36.1]} 43. Bc3
{[%clk 0:01:27.9]} 43... Rc4 {[%clk 0:03:34.8]} 44. Bd4 {[%clk 0:01:25.9]} 44...
Rxd4 {[%clk 0:03:33.6]} 45. Kg5 {[%clk 0:01:24.3]} 45... d2 {[%clk 0:03:32.8]}
46. Kh6 {[%clk 0:01:22.3]} 46... d1=Q {[%clk 0:03:30.8]} 47. Kg5 {[%clk
0:01:21.1]} 47... Qg1+ {[%clk 0:03:29.3]} 48. Kh5 {[%clk 0:01:19.3]} 48... Qg6#
{[%clk 0:03:25.7]} 0-1